bitfinex/quotes_ETHUSD_20241120
["timestamp","ask_amount","ask_price","bid_price","bid_amount"]
[1732072415530,0.9192674,3088.2,3086.3,0.01]
[1732072415531,0.0508,3088.1,3086.6,0.7844]
[1732072415945,3.23842,3088.0,3086.6,0.84918004]
[1732072416109,0.379722,3087.9,3086.6,0.84918213]
[1732072416301,0.0508,3088.1,3086.6,0.84918213]
[1732072416505,3.0508,3088.1,3086.6,0.84918213]
[1732072416822,3.28904,3088.1,3086.6,0.7844]
[1732072417028,3.23836,3088.0,3086.6,0.7844]
[1732072417346,0.70354,3087.9,3086.6,0.7844]
[1732072418609,3.23865,3087.7,3086.6,0.7844]
[1732072418810,0.0508,3087.6,3086.6,0.7844]
[1732072419355,3.28945,3087.7,3086.6,0.7844]
[1732072420115,3.28952,3087.7,3086.6,0.7844]
[1732072420345,3.23928,3087.1,3086.6,0.7844]
[1732072420519,3.29022,3087.0,3086.6,0.7844]
[1732072420850,3.23907,3087.3,3086.6,0.7844]
[1732072421011,3.28969,3087.5,3086.6,0.7844]
[1732072421201,3.23917,3087.3,3086.6,0.7844]
[1732072421405,3.23917,3087.3,3085.5,0.17098726]
[1732072421406,0.0508,3087.2,3085.6,0.8122]
[1732072422044,3.23985,3086.6,3085.6,0.8122]
[1732072422657,0.8835,3086.6,3085.6,0.8122]
[1732072422836,3.24011,3086.4,3085.6,0.8122]
[1732072423003,0.324011,3086.3,3085.6,0.8122]
[1732072423208,3.29072,3086.5,3085.6,0.8122]
[1732072424554,3.23981,3086.6,3085.6,0.8122]
[1732072424849,3.23942,3087.0,3085.7,0.8122]
[1732072425014,0.323942,3086.9,3085.7,0.87700787]
[1732072425216,0.0508,3086.8,3085.7,0.8122]
[1732072426706,3.23987,3086.6,3085.7,0.8122]
[1732072426966,0.0508,3086.5,3085.7,0.8122]
[1732072427816,3.23951,3086.9,3085.7,0.8122]
[1732072428014,3.23961,3086.8,3085.7,0.8122]
[1732072428227,0.698712,3086.7,3085.8,0.7891]
[1732072428416,0.647912,3086.7,3085.8,0.7891]
[1732072428640,0.0508,3086.6,3085.8,0.7891]
[1732072428861,3.23951,3086.9,3085.8,0.7891]
[1732072429012,3.23855,3087.8,3086.0,0.7891]
[1732072429223,0.7697,3087.9,3086.0,0.7891]
[1732072429224,3.23928,3087.1,3086.0,0.7891]
[1732072429572,0.0508,3087.0,3086.0,0.7891]
[1732072429889,3.29021,3087.0,3086.0,0.7891]
[1732072430458,3.23963,3086.8,3086.0,0.7891]
[1732072430785,0.0508,3086.7,3086.0,0.7891]
[1732072431404,0.0508,3086.7,3084.8,0.302282]
[1732072431405,3.23981,3086.6,3085.7,0.7891]
[1732072431536,3.24016,3086.3,3085.7,0.7891]
[1732072431838,3.23968,3086.8,3085.7,0.7891]
[1732072432069,3.0,3086.9,3085.7,0.7891]
[1732072432273,0.323953,3086.8,3085.7,0.7891]
[1732072432578,0.0508,3086.7,3085.7,0.7891]
[1732072433547,0.323953,3086.8,3085.7,0.7891]
[1732072433900,0.0508,3087.0,3085.7,0.7891]
[1732072434040,0.0508,3087.0,3085.7,3.0]
[1732072434381,3.23951,3086.9,3085.8,0.7891]
[1732072434682,3.29047,3086.8,3085.8,0.7891]
[1732072434834,0.652998,3086.7,3085.8,0.7891]
[1732072435042,0.0508,3086.6,3085.8,0.7891]
[1732072435448,3.23967,3086.8,3085.8,0.7891]
[1732072436600,0.0508,3086.7,3085.8,0.7891]
[1732072436884,0.329047,3086.6,3085.8,0.7891]
[1732072437082,0.0508,3086.9,3085.8,0.7891]
[1732072437904,3.2394,3087.0,3085.9,0.06480372]
[1732072438088,0.647862,3087.0,3086.0,0.7891]
[1732072438774,0.0508,3086.9,3086.0,0.7891]
[1732072439267,3.2902,3087.0,3086.0,0.7891]
[1732072439969,3.2395,3086.9,3086.0,0.7891]
[1732072440151,0.0508,3086.8,3086.0,0.7891]
[1732072441468,3.2904,3086.8,3086.0,0.7891]
[1732072441791,3.94339,3086.8,3086.0,0.7891]
[1732072442082,0.0508,3086.8,3086.0,0.7891]
[1732072442289,0.0508,3086.9,3086.0,0.7891]
[1732072442476,3.29031,3086.9,3086.0,0.7891]
[1732072442785,6.47972,3086.6,3086.0,0.7891]
[1732072443043,3.2397,3086.7,3086.0,0.7891]
[1732072443161,3.2905,3086.7,3086.0,0.7891]
[1732072443770,3.23956,3086.9,3086.0,0.7891]
[1732072444072,3.29036,3086.9,3086.0,0.7891]
[1732072444257,0.0508,3087.0,3086.0,0.7891]
[1732072444537,3.2384,3088.0,3086.0,0.7891]
[1732072444538,3.3784574,3088.2,3086.5,0.55]
[1732072444663,0.0508,3088.1,3086.7,0.55]
[1732072444868,0.38864574,3088.1,3086.8,0.85387883]
[1732072445596,3.62688574,3088.1,3086.8,0.85387883]
[1732072445905,0.37671531,3088.0,3086.8,0.85387883]
[1732072446155,3.28928,3087.9,3086.8,0.7891]
[1732072446284,0.0508,3087.9,3086.8,0.7891]
[1732072447060,3.23849,3087.9,3086.8,0.7891]
[1732072447362,3.2384,3088.0,3086.8,0.7891]
[1732072447576,0.32384,3087.9,3086.8,0.7891]
[1732072447781,0.0508,3087.8,3086.8,0.7891]
[1732072448185,0.8205,3087.8,3086.8,0.7891]
[1732072449053,0.8205,3087.8,3086.2,0.7891]
[1732072449054,3.23995,3086.5,3086.2,0.7891]
[1732072449253,0.0508,3086.4,3086.2,0.7891]
[1732072449494,3.29063,3086.6,3086.2,0.7891]
[1732072449695,3.614604,3086.6,3086.2,0.7891]
[1732072450054,0.374774,3086.6,3086.2,0.7891]
[1732072451604,3.614584,3086.6,3086.2,0.7891]
[1732072452267,0.374774,3086.6,3086.2,0.7891]
[1732072454986,3.614594,3086.6,3086.2,0.7891]
[1732072455394,0.374774,3086.6,3086.2,0.7891]
[1732072456973,3.614584,3086.6,3086.2,0.7891]
[1732072458453,3.24025,3086.2,3085.0,0.8228]
[1732072458623,0.6854314,3086.5,3085.0,0.8228]
[1732072458624,3.24051,3086.0,3085.0,0.8228]
[1732072458843,0.0508,3085.9,3085.0,0.8228]
[1732072459267,0.0508,3086.1,3085.0,0.8228]
[1732072459598,0.374827,3086.1,3085.0,0.8228]
[1732072459795,0.0508,3086.1,3085.0,0.8228]
[1732072460108,3.24053,3086.0,3085.0,0.8228]
[1732072460317,3.24076,3085.7,3085.0,0.8228]
[1732072460494,0.0508,3085.6,3085.0,0.8228]
[1732072461209,3.620892,3085.6,3085.0,0.8228]
[1732072461403,3.29174,3085.6,3085.0,0.8228]
[1732072461604,3.29174,3085.6,3084.0,0.8228]
[1732072461806,3.24113,3085.4,3084.0,0.8228]
[1732072462139,0.7741,3085.9,3084.0,0.8228]
[1732072462140,3.24141,3085.1,3084.0,0.8228]
[1732072462311,0.0508,3085.0,3084.0,0.8228]
[1732072462616,3.24168,3084.9,3084.0,0.8228]
[1732072462793,0.0508,3084.8,3084.0,0.8228]
[1732072463093,0.0508,3085.0,3084.0,0.8228]
[1732072464024,0.0508,3085.2,3084.0,0.8228]
[1732072464258,0.0508,3085.2,3084.2,0.8228]
[1732072464590,0.0508,3085.2,3083.9,3.0]
[1732072464834,0.0508,3085.2,3083.9,3.3]
[1732072464835,3.2416,3084.9,3083.9,3.3]
[1732072465045,3.24188,3084.7,3083.9,0.3]
[1732072465353,3.2418,3084.8,3083.8,0.8092]
[1732072465632,0.0508,3084.7,3083.8,0.8092]
[1732072466317,3.29261,3084.7,3083.8,0.8092]
[1732072466500,3.29262,3084.7,3083.8,0.8092]
[1732072467331,3.24194,3084.6,3083.8,0.8092]
[1732072467627,0.0508,3084.5,3083.8,0.8092]
[1732072467830,3.29289,3084.5,3083.8,0.8092]
[1732072468237,3.29289,3084.5,3083.8,1.19012]
[1732072468536,3.29289,3084.5,3083.8,0.8092]
[1732072468838,3.24219,3084.4,3083.8,0.8092]
[1732072468997,0.0508,3084.3,3083.8,0.8092]
[1732072469996,0.0508,3084.4,3083.8,0.8092]
[1732072470793,0.0508,3084.5,3083.8,0.8092]
[1732072471226,3.24264,3083.9,3083.8,0.8092]
[1732072471491,0.380077,3084.5,3083.5,0.8092]
[1732072471492,3.24212,3084.4,3083.5,0.8092]
[1732072471739,0.819,3084.6,3083.5,0.8092]
[1732072471740,3.24233,3084.2,3083.5,0.8092]
[1732072472293,0.0508,3084.1,3083.5,0.8092]
[1732072472580,3.29323,3084.1,3083.5,0.8092]
[1732072472707,3.24254,3084.0,3083.5,0.8092]
[1732072472909,0.0508,3083.9,3083.5,0.8092]
[1732072473898,0.0508,3084.1,3083.5,0.8092]
[1732072474104,0.0508,3084.3,3083.5,0.8092]
[1732072474419,0.0508,3084.4,3083.5,0.8092]
[1732072475219,3.29293,3084.4,3083.5,0.8092]
[1732072476430,3.24245,3084.1,3083.5,0.8092]
[1732072476620,3.24233,3084.2,3083.5,0.8092]
[1732072476820,3.29313,3084.2,3083.5,0.8092]
[1732072478754,0.0508,3084.2,3083.5,0.8092]
[1732072479044,0.0508,3084.5,3083.5,0.8092]
[1732072479822,3.29247,3084.9,3083.5,0.8092]
[1732072480109,3.62346,3085.0,3083.6,0.06485121]
[1732072480305,3.29236,3085.0,3083.7,0.7915]
[1732072480509,3.2413,3085.2,3083.8,0.06484449]
[1732072480746,3.2413,3085.2,3083.9,0.7915]
[1732072480954,0.0508,3085.1,3084.1,0.7915]
[1732072481658,0.0508,3085.4,3084.1,0.7915]
[1732072482730,3.29185,3085.5,3084.1,0.7915]
[1732072482955,3.24113,3085.4,3084.1,0.7915]
[1732072483132,3.29197,3085.3,3084.1,0.7915]
[1732072483559,3.24137,3085.2,3084.1,0.7915]
[1732072483859,3.24157,3085.0,3084.1,0.7915]
[1732072484209,0.0508,3084.9,3084.1,0.7915]
[1732072484337,0.0508,3085.1,3084.1,0.7915]
[1732072485757,3.29187,3085.4,3084.1,0.7915]
[1732072486175,0.0508,3085.4,3084.1,0.7915]
[1732072486686,3.2417,3084.8,3084.1,0.7915]
[1732072486840,3.2926,3084.7,3084.1,0.7915]
[1732072487418,0.0508,3084.7,3084.1,0.7915]
[1732072487533,0.0508,3084.9,3084.1,0.7915]
[1732072488232,0.648284,3085.0,3084.1,0.7915]
[1732072488870,0.0508,3084.9,3084.1,0.7915]
[1732072489967,0.0508,3085.0,3084.1,0.7915]
[1732072490273,0.38002,3085.0,3084.1,0.7915]
[1732072490644,0.0508,3085.0,3084.1,0.7915]
[1732072490896,0.0508,3085.1,3084.1,0.7915]
[1732072492115,3.24146,3085.1,3084.1,0.7915]
[1732072492194,3.29236,3085.0,3084.1,0.7915]
[1732072492347,0.0508,3084.9,3084.1,0.7915]
[1732072492976,0.380026,3084.9,3084.1,0.7915]
[1732072493169,3.24194,3084.6,3084.1,0.7915]
[1732072493570,3.29274,3084.6,3084.1,0.7915]
[1732072494067,0.0508,3084.6,3084.1,0.7915]
[1732072494269,0.0508,3084.8,3084.1,0.7915]
[1732072494444,0.453042,3084.8,3084.1,0.7915]
[1732072495053,3.694742,3084.8,3084.1,0.7915]
[1732072495258,3.24189,3084.7,3084.1,0.7915]
[1732072495459,0.0508,3084.6,3084.1,0.7915]
[1732072496763,3.29276,3084.6,3084.1,0.7915]
[1732072497016,3.2422,3084.4,3083.5,3.0]
[1732072497175,3.2422,3084.4,3082.8,0.06484873]
[1732072497176,3.24239,3084.2,3083.6,0.7915]
[1732072497388,3.29323,3084.1,3083.6,0.7915]
[1732072497593,3.24257,3084.0,3083.6,0.7915]
[1732072497802,0.0508,3083.9,3083.6,0.7915]
[1732072498282,3.24278,3083.8,3083.6,0.7915]
[1732072498595,0.0508,3083.7,3083.6,0.7915]
[1732072499041,0.0508,3083.9,3083.6,0.7915]
[1732072499162,3.24257,3084.0,3083.6,0.7915]
[1732072500146,0.0508,3084.1,3083.6,0.7915]
[1732072500268,3.24236,3084.2,3083.6,0.7915]
[1732072500656,3.24244,3084.1,3083.6,0.7915]
[1732072500904,3.29324,3084.1,3083.6,0.7915]
[1732072501100,3.24256,3084.0,3083.6,0.7915]
[1732072501695,3.24276,3083.8,3083.6,0.7915]
[1732072501874,3.24276,3083.8,3082.5,0.06486207]
[1732072501875,0.0508,3083.7,3082.6,0.7915]
[1732072502107,3.24306,3083.6,3082.6,0.7915]
[1732072502371,3.2939,3083.5,3082.6,0.7915]
[1732072503392,0.0508,3083.5,3082.6,0.7915]
[1732072503560,0.329366,3083.5,3082.6,0.7915]
[1732072503759,3.24341,3083.2,3082.6,0.7915]
[1732072503960,0.0508,3083.1,3082.6,0.7915]
[1732072504598,3.24367,3083.0,3082.6,0.7915]
[1732072504831,0.0508,3082.9,3082.6,0.7915]
[1732072505466,3.2945,3082.9,3081.5,0.7915]
[1732072505630,3.24381,3082.8,3081.5,0.7915]
[1732072505839,3.29471,3082.7,3081.5,0.7915]
[1732072506939,0.0508,3082.7,3081.5,0.7915]
[1732072507254,3.24401,3082.6,3081.5,0.7915]
[1732072507574,3.29495,3082.5,3081.5,0.7915]
[1732072507779,3.2444,3082.3,3081.5,0.7915]
[1732072507990,3.24456,3082.1,3081.5,0.7915]
[1732072508096,0.0508,3082.0,3081.5,0.7915]
[1732072508616,3.625046,3082.0,3081.0,0.7915]
[1732072508764,0.380336,3082.0,3081.0,0.7915]
[1732072508947,0.0508,3082.0,3081.0,0.7915]
[1732072509092,3.24505,3081.7,3081.0,0.7915]
[1732072509422,0.0508,3081.6,3081.0,0.7915]
[1732072509790,0.0508,3081.6,3081.0,0.245084]
[1732072510657,0.0508,3081.6,3079.1,5.33]
[1732072510658,0.01,3081.1,3079.1,5.33]
[1732072510938,0.09115978,3081.1,3079.2,1.63162332]
[1732072511138,0.01,3080.8,3079.2,0.06492782]
[1732072511508,0.08116503,3081.2,3079.2,0.06492782]
[1732072511765,0.0911549,3081.3,3079.4,0.01]
[1732072512038,0.0911549,3081.3,3078.6,4.67827469]
[1732072512039,0.50202939,3081.3,3078.6,4.62845722]
[1732072512210,0.01,3081.1,3078.7,0.32146879]
[1732072512839,0.51202939,3081.3,3078.9,0.8293]
[1732072513032,0.01,3081.1,3078.9,0.8293]
[1732072513267,0.09115435,3081.1,3078.9,0.8293]
[1732072513412,0.08115435,3081.1,3078.9,0.8293]
[1732072513617,3.24482,3081.9,3079.0,1.12870448]
[1732072513618,0.10115435,3081.8,3079.0,1.12870448]
[1732072513890,0.10115435,3081.8,3079.1,0.8293]
[1732072513891,0.08114719,3081.7,3079.1,0.8293]
[1732072514019,0.08114719,3081.7,3079.1,1.12437819]
[1732072514220,0.0911435,3081.8,3079.1,0.62087327]
[1732072514459,0.09113905,3082.2,3079.2,0.62087327]
[1732072514754,0.09113905,3082.2,3079.3,3.0]
[1732072514964,0.09113905,3082.2,3079.4,0.29940448]
[1732072515279,0.01,3082.1,3079.5,0.55]
[1732072515753,0.08113048,3082.0,3079.5,0.55]
[1732072515967,0.09113048,3082.1,3079.5,0.55]
[1732072516671,0.09113048,3082.1,3079.4,0.55]
[1732072516817,0.09113048,3082.1,3079.6,0.55]
[1732072517049,0.09113048,3082.1,3079.7,0.8293]
[1732072517221,0.09113048,3082.1,3081.0,0.8293]
[1732072517436,0.09113048,3082.1,3081.1,0.38293]
[1732072517636,0.09113048,3082.1,3081.0,0.8293]
[1732072517957,0.10113048,3082.1,3081.0,0.8293]
[1732072520502,0.7824,3082.3,3081.0,0.8293]
[1732072520671,0.01,3082.6,3081.0,0.8293]
[1732072520672,0.7724,3082.6,3081.0,0.8293]
[1732072520867,0.7724,3082.6,3081.5,3.0]
[1732072521061,0.7724,3082.6,3081.7,0.8293]
[1732072521800,0.08111234,3082.5,3081.7,0.8293]
[1732072522348,0.7824,3082.9,3081.7,0.8293]
[1732072523107,0.0811101,3082.8,3081.7,0.8293]
[1732072525760,0.86351021,3082.9,3081.7,0.8293]
[1732072526238,0.86351021,3082.9,3081.7,0.181732]
[1732072526598,0.7824,3082.9,3081.9,3.0]
[1732072526788,0.7724,3082.9,3082.0,0.3]
[1732072527167,0.8005,3083.2,3081.4,0.55]
[1732072527402,0.8005,3083.5,3081.4,0.8737]
[1732072528191,0.8005,3083.5,3081.7,0.55]
[1732072528393,0.8005,3083.5,3081.7,0.8737]
[1732072529407,0.8005,3083.5,3082.1,0.55]
[1732072529692,0.8005,3084.0,3082.4,0.8042]
[1732072529826,0.8005,3084.0,3082.5,0.55]
[1732072529969,0.8005,3084.0,3083.4,3.0]
[1732072530178,0.8005,3084.0,3082.8,0.8042]
[1732072530365,0.8005,3084.0,3083.1,0.55]
[1732072531569,0.08106584,3083.9,3083.0,0.8042]
[1732072531910,0.8005,3084.0,3083.0,0.8042]
[1732072532073,0.8005,3084.0,3083.1,0.55]
[1732072532270,0.8005,3084.0,3083.5,3.0]
[1732072532521,0.8005,3084.0,3083.1,0.60027045]
[1732072532522,0.8005,3084.0,3083.2,0.05048843]
[1732072532860,0.8005,3084.0,3083.1,0.55]
[1732072533010,0.8005,3084.0,3083.3,0.05048958]
[1732072533223,0.8005,3084.0,3083.2,0.05039161]
[1732072533421,0.8005,3084.0,3083.1,0.55]
[1732072533939,0.08106541,3083.9,3082.0,0.8042]
[1732072534234,0.8005,3083.8,3083.3,0.32432]
[1732072534422,0.8005,3083.6,3083.1,0.32434]
[1732072534710,0.01,3083.8,3083.2,0.32433]
[1732072534711,0.8005,3083.5,3083.2,0.32433]
[1732072535215,0.8005,3083.2,3082.7,0.32438]
[1732072535479,0.8005,3083.0,3082.7,0.32438]
[1732072535717,0.8005,3083.0,3082.5,0.32441]
[1732072535718,0.01,3082.9,3082.5,0.32441]
[1732072535928,0.8005,3083.0,3082.6,0.32439]
[1732072536234,0.8005,3083.0,3081.9,0.84167317]
[1732072536235,0.8005,3083.0,3082.9,0.32436]
[1732072538755,0.8005,3083.0,3082.4,0.32441]
[1732072538756,0.8005,3083.0,3082.8,0.32437]
[1732072539019,0.08109668,3082.9,3082.8,0.32437]
[1732072539313,0.08109668,3082.9,3082.8,0.37315988]
[1732072540181,0.08109668,3082.9,3082.8,0.04878988]
[1732072540497,4.14698668,3082.9,3082.8,0.04878988]
[1732072540637,0.8222,3082.7,3082.1,0.32444]
[1732072540802,0.08111097,3082.6,3082.1,0.32444]
[1732072540975,0.8222,3082.7,3082.2,0.04881351]
[1732072541171,0.8222,3082.7,3082.1,0.32444]
[1732072541506,0.8222,3082.7,3082.2,0.37163017]
[1732072541694,0.48971951,3082.6,3082.2,0.37163017]
[1732072541893,0.8222,3082.5,3082.2,0.04719017]
[1732072542092,0.8222,3082.3,3081.9,0.84167317]
[1732072542595,0.8222,3082.0,3081.9,0.84167317]
[1732072542719,0.91332577,3082.0,3081.9,0.84167317]
[1732072542876,4.07684,3082.0,3081.9,0.84167317]
[1732072543078,4.07684,3082.0,3081.2,0.32454]
[1732072543079,0.8222,3081.8,3081.2,0.32454]
[1732072543321,0.8222,3081.6,3081.2,0.32454]
[1732072543634,0.8222,3081.6,3081.3,0.04569189]
[1732072543635,0.8222,3081.4,3081.3,0.04569189]
[1732072543983,0.8222,3081.4,3080.9,0.32457]
[1732072544396,1.23904484,3081.4,3080.9,0.32457]
[1732072544621,1.23904484,3081.4,3081.2,0.32453]
[1732072544928,0.8222,3081.4,3081.3,0.32453]
[1732072545277,0.8222,3081.4,3081.1,0.32455]
[1732072545479,0.8322,3081.4,3081.3,0.04569189]
[1732072545678,0.8322,3081.4,3080.6,0.64922]
[1732072545679,0.8222,3081.4,3080.6,0.64922]
[1732072545879,0.8322,3081.4,3081.3,0.04569189]
[1732072546236,0.8322,3081.4,3081.3,0.32453]
[1732072546237,0.8222,3081.4,3081.3,0.32453]
[1732072547001,0.8222,3081.4,3081.3,0.37022189]
[1732072548126,0.8222,3081.4,3081.3,0.32453]
[1732072548441,3.24459,3082.1,3081.2,0.32454]
[1732072548442,0.8222,3081.9,3081.2,0.32454]
[1732072548749,0.8222,3081.9,3081.8,0.32448]
[1732072549304,0.8222,3081.9,3081.8,0.04420507]
[1732072549486,0.8222,3081.9,3081.8,0.32448]
[1732072550228,0.8222,3081.9,3081.8,0.36868507]
[1732072551427,0.0911261,3082.4,3082.1,0.32444]
[1732072551428,0.8222,3082.3,3082.1,0.32444]
[1732072551889,0.8222,3082.3,3082.2,0.32444]
[1732072552185,0.8222,3082.3,3081.8,0.32447]
[1732072552186,0.903317,3082.3,3081.8,0.32447]
[1732072552382,1.3190677,3082.3,3082.2,0.04418949]
[1732072552582,0.903317,3082.3,3081.8,0.32447]
[1732072552985,0.903317,3082.3,3081.9,0.04424426]
[1732072553185,0.8222,3082.1,3081.9,0.04424426]
[1732072553418,0.08112841,3082.0,3081.9,0.04424426]
[1732072553620,0.08112841,3082.0,3081.8,0.32448]
[1732072554124,0.8222,3082.1,3081.9,0.36869964]
[1732072554426,0.8222,3082.1,3081.9,0.04423964]
[1732072554596,0.08112444,3082.0,3081.9,0.04423964]
[1732072554806,0.08112444,3082.0,3081.9,0.36870964]
[1732072555120,0.8222,3082.1,3082.0,0.32446]
[1732072555523,0.8222,3082.1,3081.4,3.32452]
[1732072555740,0.8222,3082.1,3082.0,0.36869964]
[1732072556097,0.8222,3082.1,3082.0,0.32446]
[1732072556400,0.8222,3082.1,3082.0,0.36869964]
[1732072559544,0.8322,3082.1,3082.0,0.04423964]
[1732072559704,0.8322,3082.1,3081.6,0.32449]
[1732072560036,0.8322,3082.1,3081.7,0.32449]
[1732072560189,0.08112779,3082.0,3081.7,0.32449]
[1732072560383,0.08112779,3082.0,3081.9,0.32447]
[1732072560600,0.7526,3082.4,3081.9,0.32447]
[1732072560834,0.7526,3082.4,3082.3,0.32442]
[1732072561033,0.7526,3082.4,3082.1,0.32444]
[1732072561376,0.0811174,3082.3,3082.2,0.32444]
[1732072561422,0.0811174,3082.3,3082.1,0.32444]
[1732072561586,0.0811174,3082.3,3082.2,0.32444]
[1732072561802,0.7526,3082.4,3082.1,0.32444]
[1732072561803,0.7526,3082.4,3082.3,0.32443]
[1732072562507,0.84371191,3082.7,3082.5,0.3244]
[1732072562702,0.84371191,3082.7,3082.5,0.32441]
[1732072563445,0.84371191,3082.7,3082.2,0.32443]
[1732072563609,3.24413,3082.5,3081.9,0.32446]
[1732072563833,0.7526,3082.3,3081.9,0.32446]
[1732072564022,0.08112115,3082.2,3081.9,0.32446]
[1732072564218,0.84372161,3082.3,3081.7,0.32448]
[1732072564517,0.84372161,3082.3,3078.7,1.61557485]
[1732072564518,0.7526,3082.0,3081.5,0.32451]
[1732072564742,0.08112992,3081.9,3081.6,0.3245]
[1732072565897,0.01,3081.6,3081.2,0.32454]
[1732072566153,0.7526,3081.5,3081.2,0.32454]
[1732072566299,0.08114059,3081.4,3081.2,0.32454]
[1732072566504,0.7526,3081.5,3081.1,0.32455]
[1732072566737,0.83374289,3081.5,3081.0,0.32456]
[1732072566938,0.83374289,3081.5,3081.2,0.04134331]
[1732072567144,0.83374289,3081.5,3081.0,0.32456]
[1732072567308,0.83374289,3081.5,3081.1,0.32455]
[1732072567309,1.24361918,3081.5,3081.1,0.32455]
[1732072567722,1.24361918,3081.5,3080.6,0.7794]
[1732072567723,1.24361918,3081.5,3081.2,0.32454]
[1732072567893,0.7526,3081.5,3081.3,0.32453]
[1732072569104,0.83374154,3081.5,3080.8,0.32458]
[1732072569419,4.81328969,3081.5,3081.4,0.04136466]
[1732072569645,1.56811969,3081.5,3081.0,0.32456]
[1732072569938,1.56811969,3081.5,3081.2,0.32454]
[1732072570154,0.7526,3081.5,3081.3,0.32453]
[1732072570304,0.7526,3081.5,3081.1,0.32455]
[1732072570505,0.08114246,3081.4,3081.0,0.32456]
[1732072571047,0.09114246,3081.4,3080.8,0.32458]
[1732072571202,0.50102871,3081.4,3080.8,0.32458]
[1732072571403,0.50102871,3081.4,3081.0,0.32456]
[1732072571732,0.01,3081.4,3081.0,0.32456]
[1732072572398,0.09114741,3081.3,3080.8,0.32458]
[1732072572614,0.09114741,3081.3,3080.6,0.32461]
[1732072572615,0.8167,3081.1,3080.6,0.32461]
[1732072572814,0.8167,3081.1,3080.0,0.8062]
[1732072572815,0.08115341,3081.0,3080.4,0.32462]
[1732072573152,0.09115341,3081.0,3080.5,0.32462]
[1732072573270,0.8267,3080.9,3080.5,0.32462]
[1732072573415,0.01,3080.7,3080.3,0.32463]
[1732072573692,3.34717584,3080.7,3080.1,0.32466]
[1732072573959,0.8267,3080.5,3079.9,0.32468]
[1732072574175,0.01,3080.3,3079.9,0.32468]
[1732072574312,0.01,3080.3,3079.2,0.09600606]
[1732072574313,0.02,3079.5,3078.3,1.13105]
[1732072574528,0.01,3079.2,3078.7,0.3248]
[1732072574715,0.09120523,3079.2,3078.7,0.3248]
[1732072574954,0.09120523,3079.2,3078.8,0.3248]
[1732072575529,0.09120523,3079.2,3078.3,0.8062]
[1732072575858,0.01,3079.2,3078.9,0.32478]
[1732072576058,4.06387,3079.6,3078.3,1.13104]
[1732072576059,0.01,3079.5,3079.1,0.32477]
[1732072576314,0.8167,3079.6,3079.1,0.32477]
[1732072576468,0.8167,3079.6,3079.3,0.32474]
[1732072576673,0.8167,3079.6,3079.4,0.32473]
[1732072576957,0.01,3079.9,3079.4,0.32473]
[1732072577129,0.01,3079.9,3079.6,0.32471]
[1732072577366,0.8167,3080.0,3079.6,0.32471]
[1732072577751,0.8167,3080.0,3079.8,0.32468]
[1732072577958,0.8167,3080.0,3079.9,0.32468]
[1732072578117,0.01,3080.2,3079.9,0.32468]
[1732072578345,0.01,3080.3,3080.0,0.32466]
[1732072578529,0.8267,3080.4,3079.9,0.32468]
[1732072578736,0.8267,3080.4,3080.1,0.32466]
[1732072579491,0.8267,3080.4,3080.3,0.32464]
[1732072579492,0.8167,3080.4,3080.3,0.32464]
[1732072579496,0.8167,3080.4,3079.5,0.32472]
[1732072579497,0.8167,3080.8,3080.7,0.3246]
[1732072579952,0.01,3081.0,3080.9,0.32458]
[1732072580069,0.8167,3081.2,3081.0,0.32456]
[1732072580254,0.8167,3081.2,3081.1,0.32455]
[1732072580506,0.01,3081.4,3081.3,0.32453]
[1732072580704,0.8267,3081.9,3081.7,0.32449]
[1732072581004,0.01,3082.2,3082.0,0.32446]
[1732072581297,0.01,3082.2,3082.0,0.28856]
[1732072581608,0.8167,3082.3,3082.0,0.28856]
[1732072581609,0.8267,3082.3,3082.0,0.28856]
[1732072581797,0.8267,3082.3,3082.2,0.32444]
[1732072582363,0.8267,3082.3,3082.2,0.35971828]
[1732072582653,0.01,3082.5,3082.4,0.32442]
[1732072582900,0.8167,3082.7,3082.5,0.3244]
[1732072582901,0.8267,3082.7,3082.5,0.3244]
[1732072583107,0.8167,3082.7,3082.5,0.3244]
[1732072583249,0.01,3083.0,3082.9,0.32436]
[1732072583476,0.8167,3083.1,3082.9,0.32436]
[1732072584192,0.01,3083.0,3082.7,0.32438]
[1732072584345,0.01,3082.9,3082.5,0.32441]
[1732072584542,0.01,3082.9,3082.6,0.3244]
[1732072584991,0.01,3082.9,3082.7,0.32438]
[1732072585363,0.8267,3083.1,3082.6,0.3244]
[1732072585567,0.8167,3083.1,3082.9,0.32436]
[1732072585925,0.8058,3083.5,3083.0,0.32435]
[1732072586102,0.8058,3083.5,3082.9,0.32436]
[1732072586103,0.02,3083.3,3082.9,0.32436]
[1732072586407,0.02,3083.3,3082.4,0.8009]
[1732072586408,0.01,3083.4,3083.0,0.32435]
[1732072586550,0.8058,3083.5,3083.0,0.35947259]
[1732072586769,0.7658,3083.5,3083.0,0.35947259]
[1732072587415,0.01,3083.1,3083.0,0.03512259]
[1732072587562,3.33458281,3083.1,3082.5,0.32441]
[1732072587897,0.33345828,3083.0,3082.2,0.32444]
[1732072588048,0.33345828,3083.0,3082.0,0.8009]
[1732072588049,0.08110446,3082.9,3082.0,0.8009]
[1732072588250,0.08110683,3083.0,3082.6,0.32439]
[1732072588697,0.01,3083.1,3082.6,0.32439]
[1732072588698,0.09110515,3083.1,3082.6,0.32439]
[1732072588900,0.41643415,3083.1,3082.3,0.32442]
[1732072589058,3.65993415,3083.1,3082.3,0.32442]
[1732072589252,3.24359,3083.0,3081.9,0.32447]